bitfinex/quotes_BTCUSD_20241014
["timestamp","ask_amount","ask_price","bid_price","bid_amount"]
[1728938058903,0.52666851,66099.0,66098.0,0.5]
[1728938059108,0.80378987,66099.0,66098.0,0.5]
[1728938059347,0.73465156,66099.0,66098.0,0.5]
[1728938059599,0.82929242,66099.0,66098.0,0.501]
[1728938059794,0.84739432,66099.0,66098.0,0.501]
[1728938060432,0.74228538,66099.0,66098.0,0.502]
[1728938060575,0.85539432,66099.0,66098.0,0.502]
[1728938060998,0.74228538,66099.0,66098.0,0.502]
[1728938061203,0.85539432,66099.0,66098.0,0.502]
[1728938061401,0.74228538,66099.0,66098.0,0.502]
[1728938061616,0.83279181,66099.0,66098.0,0.502]
[1728938061813,0.72814327,66099.0,66098.0,0.502]
[1728938062215,0.81864985,66099.0,66098.0,0.502]
[1728938063308,0.78188038,66099.0,66098.0,0.502]
[1728938063532,0.81872636,66099.0,66098.0,0.502]
[1728938063775,0.52439057,66099.0,66098.0,0.502]
[1728938063963,0.81875052,66099.0,66098.0,0.502]
[1728938064226,0.97323849,66099.0,66098.0,0.502]
[1728938064437,1.17501086,66099.0,66098.0,0.4679047]
[1728938064673,0.98628562,66099.0,66098.0,0.4679047]
[1728938065137,0.97828562,66099.0,66098.0,0.4669047]
[1728938065369,0.97828562,66099.0,66094.0,0.00165]
[1728938065370,0.363397,66095.0,66094.0,0.00165]
[1728938065575,0.72757432,66095.0,66094.0,0.00165]
[1728938065787,0.73465805,66095.0,66094.0,0.00165]
[1728938066485,0.75729308,66095.0,66094.0,0.50165]
[1728938066837,0.76329308,66095.0,66094.0,0.50265]
[1728938067289,0.69704381,66095.0,66094.0,0.50265]
[1728938067535,0.76325413,66095.0,66094.0,0.50265]
[1728938067979,0.78498171,66095.0,66094.0,0.50365]
[1728938070748,0.78498171,66095.0,66094.0,0.49137503]
[1728938071405,0.78492309,66095.0,66094.0,0.49137503]
[1728938071839,0.78492309,66095.0,66094.0,0.002]
[1728938072713,0.291299,66094.0,66093.0,0.00035757]
[1728938072938,0.68508614,66094.0,66093.0,0.00035757]
[1728938073355,0.68478242,66094.0,66093.0,0.00035757]
[1728938073573,0.93558842,66094.0,66093.0,5.7e-07]
[1728938073784,0.93558842,66094.0,66076.0,0.22740538]
[1728938073785,0.181338,66077.0,66076.0,0.22740538]
[1728938074009,0.50797191,66077.0,66076.0,0.22740538]
[1728938074248,0.50797191,66077.0,66058.0,0.0785]
[1728938074249,0.168366,66065.0,66058.0,0.0785]
[1728938074462,0.49529608,66065.0,66058.0,0.0785]
[1728938074675,0.56304847,66065.0,66058.0,0.0785]
[1728938075109,0.5178884,66065.0,66058.0,0.0785]
[1728938075344,0.68445487,66065.0,66058.0,0.0785]
[1728938075573,0.58550735,66065.0,66058.0,0.0785]
[1728938076508,0.51783592,66065.0,66057.0,0.00165]
[1728938076751,0.7972048,66065.0,66057.0,0.00165]
[1728938076970,0.291382,66058.0,66057.0,0.00165]
[1728938077178,0.58536099,66058.0,66057.0,0.00165]
[1728938077838,0.5994146,66058.0,66057.0,0.00165]
[1728938078044,0.53181243,66058.0,66057.0,0.00165]
[1728938078262,0.69817393,66058.0,66057.0,0.00165]
[1728938078483,0.53181243,66058.0,66057.0,0.00165]
[1728938078911,0.53172454,66058.0,66057.0,0.00265]
[1728938079777,0.55879578,66058.0,66057.0,0.00265]
[1728938080463,0.62632281,66058.0,66057.0,0.00265]
[1728938080681,0.55879578,66058.0,66057.0,0.00265]
[1728938081705,0.62630079,66058.0,66057.0,0.00265]
[1728938082160,0.54122133,66058.0,66057.0,0.00265]
[1728938082386,0.48313389,66058.0,66057.0,0.00265]
[1728938082841,0.45490223,66058.0,66057.0,0.00265]
[1728938083056,0.48303539,66058.0,66057.0,0.00265]
[1728938083284,0.46903539,66058.0,66057.0,0.00165]
[1728938083513,0.48003539,66058.0,66057.0,0.00265]
[1728938083730,0.50303539,66058.0,66057.0,0.00265]
[1728938084959,0.49003539,66058.0,66057.0,0.00265]
[1728938085169,0.50003539,66058.0,66057.0,0.00265]
[1728938085421,0.52304919,66058.0,66057.0,0.00265]
[1728938085867,0.52804919,66058.0,66057.0,0.00265]
[1728938086510,0.51398369,66058.0,66057.0,0.00265]
[1728938086738,0.52807142,66058.0,66057.0,0.00265]
[1728938086955,0.49879724,66058.0,66057.0,0.00265]
[1728938087175,0.52807145,66058.0,66057.0,0.00265]
[1728938087620,0.005,66054.0,66048.0,0.0818]
[1728938087815,0.151402,66049.0,66048.0,0.0818]
[1728938088120,0.18131192,66049.0,66048.0,0.0818]
[1728938089468,0.18331192,66049.0,66048.0,0.0818]
[1728938090092,0.18431192,66049.0,66048.0,0.0818]
[1728938091012,0.19558146,66049.0,66048.0,0.0818]
[1728938091238,0.18431192,66049.0,66048.0,0.0818]
[1728938091469,0.19558235,66049.0,66048.0,0.0818]
[1728938093553,0.34911082,66049.0,66048.0,0.5818]
[1728938094479,0.34911987,66049.0,66048.0,0.5818]
[1728938098396,0.36323171,66049.0,66048.0,0.5818]
[1728938099069,0.36323171,66049.0,66048.0,0.583452]
[1728938099315,0.38130332,66049.0,66048.0,0.583452]
[1728938101219,0.38134558,66049.0,66048.0,0.583452]
[1728938101912,0.40395741,66049.0,66048.0,0.583452]
[1728938102144,0.50395733,66049.0,66048.0,0.501652]
[1728938102418,0.50895733,66049.0,66048.0,0.501652]
[1728938102638,0.53180372,66049.0,66048.0,0.501652]
[1728938102858,0.51673699,66049.0,66048.0,0.501652]
[1728938103546,0.5617318,66049.0,66048.0,0.501652]
[1728938104824,0.56189467,66049.0,66048.0,0.501652]
[1728938105221,0.56192337,66049.0,66048.0,0.501652]
[1728938105453,0.51689857,66049.0,66048.0,0.501652]
[1728938105652,0.50911891,66049.0,66048.0,0.501652]
[1728938106526,0.55421353,66049.0,66048.0,0.501652]
[1728938107697,0.50911891,66049.0,66048.0,0.501652]
[1728938108329,0.56935499,66049.0,66048.0,0.501652]
[1728938108548,0.59177516,66049.0,66048.0,0.501652]
[1728938108793,0.59180924,66049.0,66048.0,0.501652]
[1728938109017,0.55400729,66049.0,66048.0,0.501652]
[1728938109225,0.57671573,66049.0,66048.0,0.501652]
[1728938109432,0.69102434,66049.0,66048.0,0.501652]
[1728938109641,0.76623544,66049.0,66048.0,0.501652]
[1728938109853,0.78135606,66049.0,66048.0,0.501652]
[1728938110066,0.78135608,66049.0,66048.0,0.501652]
[1728938110507,0.69102477,66049.0,66048.0,0.501652]
[1728938110939,0.78140108,66049.0,66048.0,0.501652]
[1728938111177,0.77640108,66049.0,66048.0,0.597252]
[1728938111467,0.68602477,66049.0,66048.0,0.597252]
[1728938111655,0.67090413,66049.0,66048.0,0.597252]
[1728938112765,0.67091073,66049.0,66048.0,0.597252]
[1728938113635,0.50418706,66049.0,66048.0,0.597252]
[1728938113855,0.67110078,66049.0,66048.0,0.597252]
[1728938114423,0.50418706,66049.0,66048.0,0.597252]
[1728938114678,0.76159173,66049.0,66048.0,0.597252]
[1728938115252,0.76159692,66049.0,66048.0,0.597252]
[1728938115460,0.67116274,66049.0,66048.0,0.597252]
[1728938115863,0.76166837,66049.0,66048.0,0.597252]
[1728938116477,0.78372153,66049.0,66048.0,0.597252]
[1728938117566,0.67116274,66049.0,66048.0,0.597252]
[1728938119780,0.33451752,66049.0,66048.0,0.825857]
[1728938119998,0.05972186,66049.0,66048.0,0.825857]
[1728938120224,0.003,66049.0,66048.0,0.825857]
[1728938120439,0.01434896,66049.0,66048.0,0.825857]
[1728938120709,0.001,66049.0,66048.0,0.825857]
[1728938120899,0.06889323,66057.0,66056.0,0.1732]
[1728938120900,0.04620768,66057.0,66056.0,0.1732]
[1728938121111,0.01217103,66057.0,66056.0,0.324586]
[1728938121325,0.000826,66057.0,66056.0,0.324586]
[1728938123108,0.000826,66057.0,66056.0,0.824586]
[1728938123336,0.001826,66057.0,66056.0,0.825586]
[1728938123567,0.001826,66057.0,66056.0,0.829586]
[1728938127047,0.001826,66057.0,66056.0,1.00565545]
[1728938127449,0.001826,66057.0,66056.0,0.825586]
[1728938128100,0.001826,66057.0,66056.0,0.84813738]
[1728938128569,0.000826,66057.0,66056.0,0.84713738]
[1728938129009,0.000826,66057.0,66056.0,0.85413738]
[1728938129010,0.001826,66057.0,66056.0,0.85413738]
[1728938129246,0.002826,66057.0,66056.0,0.86013738]
[1728938134683,0.002826,66057.0,66056.0,0.85513738]
[1728938134932,0.00227573,66057.0,66056.0,0.85513738]
[1728938136107,0.00227573,66057.0,66056.0,0.86005738]
[1728938136765,0.00027573,66057.0,66056.0,0.84705738]
[1728938136984,0.00227573,66057.0,66056.0,0.86405738]
[1728938139204,0.00227573,66057.0,66056.0,1.04012683]
[1728938145299,0.00227573,66057.0,66056.0,1.04177883]
[1728938147899,0.00227573,66057.0,66056.0,0.97844227]
[1728938153486,0.00227573,66057.0,66056.0,0.97043275]
[1728938155727,0.00227573,66057.0,66056.0,1.13396122]
[1728938155947,0.00227573,66057.0,66056.0,1.24669411]
[1728938156824,0.00027573,66057.0,66056.0,1.22969411]
[1728938157099,0.00127573,66057.0,66056.0,1.24369411]
[1728938157307,0.00227573,66057.0,66056.0,1.25769411]
[1728938158171,0.00227573,66057.0,66056.0,1.14496122]
[1728938158417,0.00227573,66057.0,66056.0,1.25769411]
[1728938158629,0.00227573,66057.0,66056.0,1.14496122]
[1728938161653,0.00227573,66057.0,66056.0,1.03222833]
[1728938161853,0.00227573,66057.0,66056.0,0.97651275]
[1728938162088,0.00227573,66057.0,66056.0,0.95896137]
[1728938163187,0.00227573,66057.0,66056.0,0.95396137]
[1728938170280,0.00227573,66057.0,66056.0,1.22514273]
[1728938170705,0.00227573,66057.0,66056.0,1.23514273]
[1728938170924,0.00227573,66057.0,66056.0,1.23714273]
[1728938171163,0.00227573,66057.0,66056.0,1.23514273]
[1728938172032,0.00227573,66057.0,66056.0,1.24298408]
[1728938172283,0.00227573,66057.0,66056.0,1.2883496]
[1728938172789,0.00227573,66057.0,66056.0,1.28053116]
[1728938173849,0.00227573,66057.0,66056.0,1.4073701]
[1728938174278,0.00227573,66057.0,66056.0,1.36198167]
[1728938177533,0.00227573,66057.0,66056.0,1.36398167]
[1728938177752,0.00227573,66057.0,66056.0,1.40937109]
[1728938177968,0.00227573,66057.0,66056.0,1.36398167]
[1728938181284,0.00227573,66057.0,66056.0,1.36198167]
[1728938183342,0.00227573,66057.0,66056.0,1.40737109]
[1728938183554,0.00227573,66057.0,66056.0,1.36198167]
[1728938184453,0.00227573,66057.0,66056.0,1.18582931]
[1728938184676,0.00227573,66057.0,66056.0,1.36198167]
[1728938184890,0.00227573,66057.0,66056.0,1.18582931]
[1728938185106,0.00227573,66057.0,66056.0,1.36198167]
[1728938190385,0.04537243,66076.0,66067.0,0.00492]
[1728938190624,0.09074487,66079.0,66064.0,0.302735]
[1728938190625,0.22740538,66075.0,66074.0,0.32749736]
[1728938190847,0.04537243,66080.0,66079.0,0.151334]
[1728938191078,0.04537243,66080.0,66069.0,0.00492]
[1728938191079,0.04537243,66081.0,66080.0,0.151331]
[1728938192449,0.04537243,66082.0,66080.0,0.155331]
[1728938192666,0.04537243,66082.0,66081.0,0.17615236]
[1728938193863,0.04537243,66082.0,66081.0,0.11268264]
[1728938194307,0.04536853,66082.0,66081.0,0.11368264]
[1728938194757,0.04536853,66083.0,66081.0,0.11368264]
[1728938194967,0.04536853,66083.0,66081.0,0.11568264]
[1728938195175,0.04536853,66082.0,66081.0,0.61568264]
[1728938195393,0.05670965,66082.0,66081.0,0.61568264]
[1728938195619,0.05670965,66082.0,66081.0,0.61368264]
[1728938195821,0.05670965,66082.0,66081.0,0.501]
[1728938196071,0.05670964,66082.0,66081.0,0.501]
[1728938196950,0.05671126,66082.0,66081.0,0.501]
[1728938197166,0.05671126,66082.0,66081.0,0.5]
[1728938197384,0.05671126,66082.0,66081.0,0.501]
[1728938197841,0.07940138,66082.0,66081.0,0.501]
[1728938198052,0.09358254,66082.0,66081.0,0.501]
[1728938198319,0.02552389,66082.0,66081.0,0.501]
[1728938199007,0.6212502,66082.0,66081.0,0.501]
[1728938199234,0.64866068,66082.0,66081.0,0.501]
[1728938199463,0.76209177,66082.0,66081.0,0.501]
[1728938199955,0.78978872,66082.0,66081.0,0.501]
[1728938200187,0.67635763,66082.0,66081.0,0.5]
[1728938200403,0.69148128,66082.0,66081.0,0.5]
[1728938200631,0.67635763,66082.0,66081.0,0.5]
[1728938200854,0.60998144,66082.0,66081.0,0.5]
[1728938201104,0.67636478,66082.0,66081.0,0.501]
[1728938201335,0.67636478,66082.0,66081.0,0.502]
[1728938201570,0.67636478,66082.0,66081.0,0.501]
[1728938201790,0.82989325,66082.0,66081.0,0.50094566]
[1728938202477,0.83071925,66082.0,66081.0,0.50094566]
[1728938202699,0.83071925,66082.0,66081.0,0.50194566]
[1728938202926,0.83827736,66082.0,66081.0,0.50199966]
[1728938203135,0.83831736,66082.0,66081.0,0.50199966]
[1728938204802,0.83829929,66082.0,66081.0,0.50199966]
[1728938205666,0.97438145,66082.0,66081.0,0.50199966]
[1728938205884,0.83829929,66082.0,66081.0,0.50199966]
[1728938206759,0.83828222,66082.0,66081.0,0.50199966]
[1728938207640,0.83328222,66082.0,66081.0,0.50199966]
[1728938208380,0.96936748,66082.0,66081.0,0.50199966]
[1728938208614,0.95221269,66082.0,66081.0,0.50199966]
[1728938208756,0.83880701,66082.0,66081.0,0.50199966]
[1728938208982,0.97489227,66082.0,66081.0,0.50199966]
[1728938209162,0.83880701,66082.0,66081.0,0.50199966]
[1728938209776,0.75470701,66082.0,66081.0,0.50199966]
[1728938209993,0.75470555,66082.0,66081.0,0.50199966]
[1728938210213,0.75052561,66082.0,66081.0,0.50199966]
[1728938210438,0.75470744,66082.0,66081.0,0.50199966]
[1728938210917,0.75052561,66082.0,66081.0,0.50199966]
[1728938211143,0.75042846,66082.0,66081.0,0.50199966]
[1728938211372,0.67132846,66082.0,66081.0,0.50199966]
[1728938213328,0.80741372,66082.0,66081.0,0.50199966]
[1728938213554,0.65388525,66082.0,66081.0,0.50199966]
[1728938213769,0.34347299,66082.0,66081.0,0.50199966]
[1728938214008,0.45690458,66082.0,66081.0,0.50199966]
[1728938214233,0.29054527,66082.0,66081.0,0.50199966]
[1728938214471,0.28367587,66082.0,66081.0,0.50099966]
[1728938214703,0.28367587,66082.0,66081.0,0.59939966]
[1728938215129,0.1929792,66082.0,66081.0,0.59939966]
[1728938215636,0.21849029,66082.0,66081.0,0.59939966]
[1728938215805,0.21849029,66082.0,66081.0,0.60039966]
[1728938216032,0.29505973,66082.0,66081.0,0.60039966]
[1728938216233,0.29505973,66082.0,66081.0,0.59939966]
[1728938218257,0.2994683,66082.0,66081.0,0.59939966]
[1728938218484,0.31364027,66082.0,66081.0,0.59939966]
[1728938218698,0.2994683,66082.0,66081.0,0.59939966]
[1728938219145,0.22289794,66082.0,66081.0,0.59939966]
[1728938219819,0.20872603,66082.0,66081.0,0.59939966]
[1728938220038,0.22289787,66082.0,66081.0,0.59939966]
[1728938222435,0.19738777,66082.0,66081.0,0.59939966]
[1728938222668,0.22289859,66082.0,66081.0,0.59939966]
[1728938225540,0.22289859,66082.0,66081.0,0.60104966]
[1728938226393,0.28812448,66082.0,66081.0,0.60104966]
[1728938226654,0.31364386,66082.0,66081.0,0.60104966]
[1728938226874,0.22290715,66082.0,66081.0,0.60104966]
[1728938227294,0.31364386,66082.0,66081.0,0.60104966]
[1728938227508,0.22290715,66082.0,66081.0,0.60104966]
[1728938229796,0.31364261,66082.0,66081.0,0.60104966]
[1728938230700,0.29946661,66082.0,66081.0,0.60104966]
[1728938230915,0.31364583,66082.0,66081.0,0.60104966]
[1728938232449,0.31362558,66082.0,66081.0,0.60104966]
[1728938233273,0.33177737,66082.0,66081.0,0.60104966]
[1728938234278,0.31759815,66082.0,66081.0,0.60104966]
[1728938234483,0.33178049,66082.0,66081.0,0.60104966]
[1728938237336,0.33178195,66082.0,66081.0,0.60104966]
[1728938237586,0.24104879,66082.0,66081.0,0.60104966]
[1728938238961,0.0736005,66082.0,66081.0,0.83177866]
[1728938239182,0.0299048,66082.0,66081.0,0.83177866]
[1728938239407,0.01668592,66082.0,66081.0,0.83177866]
[1728938240781,0.01668592,66082.0,66081.0,0.83577866]
[1728938240999,0.01668592,66082.0,66081.0,0.83777866]
[1728938241454,0.01668592,66082.0,66081.0,0.83377866]
[1728938241915,0.01668592,66082.0,66081.0,0.84077866]
[1728938242368,0.01668592,66082.0,66081.0,0.84777866]
[1728938242617,0.01668592,66082.0,66081.0,0.69644966]
[1728938242821,0.01668592,66082.0,66081.0,0.8091323]
[1728938243888,0.02804729,66082.0,66081.0,0.8091323]
[1728938244099,0.01668592,66082.0,66081.0,0.8091323]
[1728938249473,0.01668592,66082.0,66081.0,0.9604613]
[1728938262260,0.01668592,66082.0,66081.0,0.84777866]
[1728938274624,0.01668592,66082.0,66081.0,0.83877866]
[1728938274998,0.01668592,66082.0,66081.0,0.84977866]
[1728938275372,0.01668592,66082.0,66081.0,0.84277866]
[1728938276347,0.01668592,66082.0,66081.0,0.85177866]
[1728938286049,0.01668592,66082.0,66081.0,0.9644613]
[1728938286521,0.01668592,66082.0,66081.0,0.52164966]
[1728938286767,0.19573923,66082.0,66081.0,0.52164966]
[1728938287021,0.23870722,66082.0,66081.0,0.52164966]
[1728938287494,0.35225224,66082.0,66081.0,0.51264966]
[1728938287754,0.23869981,66082.0,66081.0,0.51664966]
[1728938287982,0.23870053,66082.0,66081.0,0.51664966]
[1728938288215,0.23869097,66082.0,66081.0,0.50564966]
[1728938288471,0.23869097,66082.0,66081.0,0.50164966]
[1728938288925,0.22052553,66082.0,66081.0,0.50164966]
[1728938289150,0.31134813,66082.0,66081.0,0.50164966]
[1728938289377,0.31134146,66082.0,66081.0,0.50164966]
[1728938289634,0.22044394,66082.0,66081.0,0.50164966]
[1728938290094,0.33397155,66082.0,66081.0,0.50164966]
[1728938290337,0.34815689,66082.0,66081.0,0.50164966]
[1728938291239,0.33397155,66082.0,66081.0,0.50164966]
[1728938291484,0.31120564,66082.0,66081.0,0.50164966]
[1728938291709,0.22040984,66082.0,66081.0,0.50164966]
[1728938292404,0.31120127,66082.0,66081.0,0.50164966]
[1728938293081,0.12092192,66082.0,66081.0,0.50164966]
[1728938293310,0.0528293,66082.0,66081.0,0.50164966]
[1728938294008,0.23456333,66082.0,66081.0,0.50164966]
[1728938294243,0.06699117,66082.0,66081.0,0.50164966]
[1728938294444,0.05281021,66082.0,66081.0,0.50164966]
[1728938295388,0.12089649,66082.0,66081.0,0.50164966]
[1728938295838,0.07267303,66082.0,66081.0,0.65297866]
[1728938296049,0.07267303,66082.0,66081.0,0.74927866]
[1728938296272,0.0620748,66082.0,66081.0,0.74927866]
[1728938298287,0.0620748,66082.0,66081.0,0.59894966]
[1728938298524,0.01668592,66082.0,66081.0,0.59894966]
[1728938298740,0.01668592,66082.0,66081.0,0.75227866]
[1728938298959,0.02728489,66082.0,66081.0,0.75227866]
[1728938299423,0.01668592,66082.0,66081.0,0.75227866]
[1728938300529,0.01668592,66082.0,66081.0,0.60094966]
[1728938301224,0.01668592,66082.0,66081.0,0.75227866]
[1728938304752,0.01668592,66082.0,66081.0,0.60094966]
[1728938305187,0.07265438,66082.0,66081.0,0.60094966]
[1728938305395,0.06207097,66082.0,66081.0,0.60094966]
[1728938305608,0.02803034,66082.0,66081.0,0.60094966]
[1728938305820,0.01668592,66082.0,66081.0,0.75227866]
[1728938306817,0.01668592,66082.0,66081.0,0.60094966]
[1728938307228,0.02726933,66082.0,66081.0,0.60094966]
[1728938307668,0.01668592,66082.0,66081.0,0.60094966]
[1728938309233,0.01668592,66082.0,66081.0,0.75227866]
[1728938312465,0.01668592,66082.0,66081.0,0.8649613]
[1728938312707,0.01668592,66082.0,66081.0,0.75227866]
[1728938312926,0.01668592,66082.0,66081.0,0.7136323]
[1728938313135,0.01668592,66082.0,66081.0,0.6636323]
[1728938313369,0.10084895,66082.0,66081.0,0.6636323]
[1728938313583,0.06964799,66082.0,66081.0,0.8149613]
[1728938313795,0.11502761,66082.0,66081.0,0.8149613]
[1728938314030,0.06964799,66082.0,66081.0,0.45464966]
[1728938314476,0.06964799,66082.0,66081.0,0.50464966]
[1728938314700,0.23714299,66082.0,66081.0,0.50464966]
[1728938314929,0.23714299,66082.0,66081.0,0.50364966]
[1728938315146,0.23714299,66082.0,66081.0,0.50164966]
[1728938315399,0.06964799,66082.0,66081.0,0.50164966]
[1728938315629,0.1377076,66082.0,66081.0,0.50164966]
[1728938315831,0.06964799,66082.0,66081.0,0.50164966]
[1728938316244,0.13770225,66082.0,66081.0,0.50164966]
[1728938318114,0.06964799,66082.0,66081.0,0.50164966]
[1728938318338,0.1376959,66082.0,66081.0,0.50164966]
[1728938319647,0.13769127,66082.0,66081.0,0.50164966]
[1728938319874,0.4884231,66082.0,66081.0,0.50164966]
[1728938320097,0.52926609,66082.0,66081.0,0.50164966]
[1728938322925,0.53834182,66082.0,66081.0,0.50164966]
[1728938323159,0.70568044,66082.0,66081.0,0.50164966]
[1728938323386,0.71515143,66082.0,66081.0,0.50164966]
[1728938324052,0.88455143,66082.0,66081.0,0.50164966]
[1728938324277,1.22908359,66082.0,66081.0,0.50164966]
[1728938324494,0.9588987,66082.0,66081.0,0.50164966]
[1728938324732,0.9588987,66082.0,66081.0,0.4685487]
[1728938324733,1.0872545,66082.0,66081.0,0.4685487]
[1728938324961,1.08969901,66082.0,66081.0,0.4685487]
[1728938325181,1.08969901,66082.0,66081.0,0.4695487]
[1728938325903,1.08969901,66082.0,66081.0,0.5026497]
[1728938326797,1.11296039,66082.0,66081.0,0.5026497]
[1728938327018,1.11296039,66082.0,66081.0,0.5036497]
[1728938327242,1.06190579,66082.0,66081.0,0.5016497]
[1728938327461,1.02872294,66082.0,66081.0,0.5016497]
[1728938327682,1.06547337,66082.0,66081.0,0.5036497]
[1728938327928,0.91765337,66082.0,66081.0,0.5026497]
[1728938328147,0.91765337,66082.0,66081.0,0.5016497]
[1728938328381,0.91765337,66082.0,66081.0,0.5026497]
[1728938328382,0.9411937,66082.0,66081.0,0.5026497]
[1728938329314,0.9411937,66082.0,66081.0,0.5036497]
[1728938330213,0.93270893,66082.0,66081.0,0.5036497]
[1728938331149,0.89593793,66082.0,66081.0,0.5036497]
[1728938331366,0.93263488,66082.0,66081.0,0.5036497]
[1728938333813,0.93263488,66082.0,66081.0,0.00365]
[1728938334033,0.93263488,66082.0,66065.0,0.22740538]
[1728938334034,0.151363,66066.0,66065.0,0.22740538]
[1728938334250,0.48057402,66066.0,66065.0,0.22740538]
[1728938334699,0.151375,66061.0,66060.0,0.1775]
[1728938334932,0.16449644,66061.0,66060.0,0.1775]
[1728938337144,0.16449644,66061.0,66060.0,0.1785]
[1728938337371,0.16449644,66061.0,66060.0,0.6785]
[1728938340299,0.20403114,66061.0,66060.0,0.6785]
[1728938341396,0.20403114,66061.0,66060.0,0.68015]
[1728938341617,0.35756115,66061.0,66060.0,0.68015]
[1728938341825,0.38056115,66061.0,66060.0,0.60215]
[1728938342056,0.48556115,66061.0,66060.0,0.50265]
[1728938342291,0.79520114,66061.0,66060.0,0.50265]
[1728938342535,0.70488989,66061.0,66060.0,0.50265]
[1728938343234,0.71994097,66061.0,66060.0,0.50265]
[1728938343491,0.71251055,66061.0,66060.0,0.50265]
[1728938343706,0.71251055,66061.0,66060.0,0.50365]
[1728938343940,0.82530525,66061.0,66060.0,0.50265]
[1728938344142,0.71251055,66061.0,66060.0,0.50265]
[1728938344356,0.71251055,66061.0,66060.0,0.50365]
[1728938344515,0.82527459,66061.0,66060.0,0.50365]
[1728938344974,0.82527459,66061.0,66060.0,0.50265]
[1728938345537,0.82527459,66061.0,66060.0,0.50165]
[1728938345538,0.81115572,66061.0,66060.0,0.50165]
[1728938345749,0.82501634,66061.0,66060.0,0.50365]
[1728938346023,0.727332,66061.0,66060.0,0.50265]
[1728938346239,0.71227737,66061.0,66060.0,0.50165]
[1728938346400,0.8249923,66061.0,66060.0,0.50265]
[1728938346607,0.71227737,66061.0,66060.0,0.50265]
[1728938347616,0.82497664,66061.0,66060.0,0.50365]
[1728938348052,0.82497664,66061.0,66060.0,0.00365]
[1728938348279,0.82497664,66061.0,66045.0,0.22740538]
[1728938348280,0.184402,66049.0,66045.0,0.22740538]
[1728938348517,0.49551418,66049.0,66045.0,0.22740538]
[1728938348714,0.5085563,66049.0,66045.0,0.22740538]
[1728938349591,0.5085563,66049.0,66048.0,0.003652]
[1728938352490,0.5085563,66049.0,66048.0,0.503652]
[1728938353131,0.50857892,66049.0,66048.0,0.503652]
[1728938353343,0.53118545,66049.0,66048.0,0.503652]
[1728938355131,0.52118545,66049.0,66048.0,0.503652]
[1728938357066,0.47769283,66049.0,66048.0,0.503652]
[1728938357314,0.52122117,66049.0,66048.0,0.503652]
[1728938357548,0.52122132,66049.0,66048.0,0.503652]
[1728938362544,0.56629554,66049.0,66048.0,0.503652]
[1728938363452,0.52122132,66049.0,66048.0,0.503652]
[1728938364124,0.52127367,66049.0,66048.0,0.503652]
[1728938364513,0.58888501,66049.0,66048.0,0.503652]
[1728938364715,0.59388501,66049.0,66048.0,0.503652]
[1728938365156,0.59389083,66049.0,66048.0,0.503652]
[1728938365324,0.52627949,66049.0,66048.0,0.503652]
[1728938366048,0.48955925,66049.0,66048.0,0.503652]
[1728938366219,0.78332337,66049.0,66048.0,0.503652]
[1728938366421,0.79841929,66049.0,66048.0,0.503652]
[1728938366777,0.78357455,66049.0,66048.0,0.503652]
[1728938367019,0.79202484,66049.0,66048.0,0.503652]
[1728938367225,0.78358408,66049.0,66048.0,0.503652]
[1728938367430,0.69318441,66049.0,66048.0,0.503652]
[1728938368091,0.80618395,66049.0,66048.0,0.503652]
[1728938368304,0.70828754,66049.0,66048.0,0.503652]
[1728938368515,0.82128708,66049.0,66048.0,0.503652]
[1728938368720,0.69318441,66049.0,66048.0,0.503652]
[1728938369138,0.80627652,66049.0,66048.0,0.503652]
[1728938369350,0.69324169,66049.0,66048.0,0.503652]
[1728938369567,0.71683448,66049.0,66048.0,0.503652]
[1728938369911,0.72700521,66049.0,66048.0,0.503652]
[1728938371389,0.72700521,66049.0,66048.0,0.46953703]
[1728938371390,0.71854533,66049.0,66048.0,0.46953703]
[1728938372405,0.83167895,66049.0,66048.0,0.49999903]
[1728938374281,0.81654604,66049.0,66048.0,0.49999903]
[1728938376555,0.81654604,66049.0,66048.0,0.50082403]
[1728938376779,0.81819604,66049.0,66048.0,0.50082403]
[1728938377854,0.81825188,66049.0,66048.0,0.50082403]
[1728938378303,0.70511826,66049.0,66048.0,0.50082403]
[1728938379238,0.51358979,66049.0,66048.0,0.78870667]
[1728938379472,0.41449023,66049.0,66048.0,0.78870667]
[1728938379712,0.39186396,66049.0,66048.0,0.78870667]
[1728938379954,0.34660814,66049.0,66048.0,0.78870667]
[1728938380421,0.29556853,66049.0,66048.0,0.78870667]
[1728938380635,0.32845633,66049.0,66048.0,0.79070667]
[1728938380870,0.34659742,66049.0,66048.0,0.79070667]
[1728938381065,0.34659742,66049.0,66048.0,0.78970667]
[1728938381285,0.60418648,66049.0,66048.0,0.78970667]
[1728938381488,0.60418648,66049.0,66048.0,0.79070667]
[1728938382367,0.51367484,66049.0,66048.0,0.79070667]
[1728938383270,0.62681439,66049.0,66048.0,0.79070667]
[1728938383705,0.62681439,66049.0,66048.0,0.78840062]
[1728938384127,0.62681439,66049.0,66048.0,0.67571798]
[1728938384343,0.51367484,66049.0,66048.0,0.67571798]
[1728938384574,0.51383017,66049.0,66048.0,0.67571798]
[1728938384799,0.51383017,66049.0,66048.0,0.67802498]
[1728938387269,0.34659742,66049.0,66048.0,0.67802498]
[1728938388361,0.5140037,66049.0,66048.0,0.67802498]
[1728938391061,0.3465854,66049.0,66048.0,0.67802498]
[1728938391277,0.51402593,66049.0,66048.0,0.67802498]
[1728938391927,0.4477051,66049.0,66048.0,0.67802498]
[1728938392182,0.51402281,66049.0,66048.0,0.67802498]
[1728938392372,0.34658218,66049.0,66048.0,0.67802498]
[1728938392513,0.33241176,66049.0,66048.0,0.67802498]
[1728938392737,0.34658105,66049.0,66048.0,0.67802498]
[1728938394278,0.32390833,66049.0,66048.0,0.67802498]
[1728938394412,0.34658807,66049.0,66048.0,0.67802498]
[1728938396290,0.58389807,66049.0,66048.0,0.67802498]
[1728938396507,0.65024069,66049.0,66048.0,0.67802498]
[1728938400235,0.61340503,66049.0,66048.0,0.67802498]
[1728938400448,0.65027184,66049.0,66048.0,0.67802498]
[1728938400655,0.51413569,66049.0,66048.0,0.67802498]
[1728938400876,0.65028156,66049.0,66048.0,0.67802498]
[1728938401103,0.51413569,66049.0,66048.0,0.67802498]
[1728938401513,0.51613569,66049.0,66048.0,0.67802498]
[1728938401753,0.51413569,66049.0,66048.0,0.67802498]
[1728938403135,0.51414301,66049.0,66048.0,0.67802498]
[1728938403349,0.51414373,66049.0,66048.0,0.67802498]
[1728938406318,0.6906722,66049.0,66048.0,0.50282498]
[1728938406540,0.6956722,66049.0,66048.0,0.50282498]
[1728938406785,0.75292085,66049.0,66048.0,0.50282498]
[1728938407019,0.8681722,66049.0,66048.0,0.4687086]
[1728938407240,1.60585562,66049.0,66048.0,0.4687086]